fUST/lending_fUST_20260206
["ID","MTS","AMOUNT","RATE_DAILY","PERIOD"]
[404651900,1770381209659,-1000.0,0.00014368,2]
[404651901,1770381209687,-504.98286969,0.00014368,2]
[404651902,1770381209716,-1500.0,0.00014795,2]
[404651903,1770381209744,-1003.40675429,0.00014795,2]
[404651904,1770381209771,-442.24164672,0.00014795,2]
[404651905,1770381243099,500.0,0.00013273,2]
[404651906,1770381243134,500.0,0.00013699,2]
[404651907,1770381243172,500.20325164,0.00013699,2]
[404651908,1770381243201,500.23860958,0.00013273,2]
[404651909,1770381243230,618.18348001,0.00013699,2]
[404651910,1770381243414,500.0,0.00013273,2]
[404651911,1770381243678,150.0,0.00013699,2]
[404651912,1770381244349,500.0,0.00013699,2]
[404651913,1770381244416,500.0,0.00013699,2]
[404651914,1770381244681,500.0,0.00013699,2]
[404651915,1770381246542,500.0,0.00013699,2]
[404651916,1770381247269,500.0,0.00013699,2]
[404651917,1770381247680,500.0,0.00013699,2]
[404651918,1770381248750,500.0,0.00013273,2]
[404651919,1770381248781,500.0,0.00013273,2]
[404651920,1770381249081,5000.0,0.000137,2]
[404651921,1770381250602,551.69373507,0.00013699,2]
[404651922,1770381250745,500.0,0.00013273,2]
[404651923,1770381251230,500.0,0.00013273,2]
[404651924,1770381251291,500.0,0.00013699,2]
[404651925,1770381251399,500.0,0.00013273,2]
[404651926,1770381251483,500.0,0.00013699,2]
[404651927,1770381251906,500.0,0.00013699,2]
[404651928,1770381253147,500.0,0.00013699,2]
[404651929,1770381253526,300.0,0.00013673,2]
[404651930,1770381254075,500.0,0.00013273,2]
[404651931,1770381254426,459.57667332,0.00013699,2]
[404651932,1770381254478,189.96097849,0.00013699,2]
[404651933,1770381259821,-188.00308594,0.00013273,2]
[404651934,1770381271831,482.30862699,0.00013253,2]
[404651935,1770381306332,-311.99691406,0.00013273,2]
[404651936,1770381306354,-500.0,0.00013273,2]
[404651937,1770381306375,-265.12851607,0.00013273,2]
[404651938,1770381306396,-549.51467285,0.00013273,2]
[404651939,1770381306422,-373.35989702,0.00013273,2]
[404651960,1770381366184,-126.64010298,0.00013273,2]
[404651961,1770381366216,-256.68663128,0.00013273,2]
[404651962,1770381366246,-500.0,0.00013273,2]
[404651963,1770381366274,-500.0,0.00013273,2]
[404651964,1770381366303,-150.0,0.00013485,2]
[404651965,1770381366332,-1200.0,0.00013698,2]
[404651966,1770381366362,-300.0,0.00013698,2]
[404651967,1770381368948,500.0,0.00013273,2]
[404651968,1770381368986,500.0,0.00013273,2]
[404651969,1770381370925,500.0,0.00013273,2]
[404651970,1770381371151,500.0,0.00013273,2]
[404651971,1770381371924,500.0,0.00013273,2]
[404651972,1770381373760,300.0,0.00013673,2]
[404651973,1770381374666,500.0,0.00013273,2]
[404651974,1770381375260,500.0,0.00013273,2]
[404651975,1770381380157,133.35653148,0.00013699,2]
[404651983,1770381430666,-500.0,0.00013273,2]
[404651984,1770381430836,-500.0,0.00013273,2]
[404651985,1770381430865,-166.1182202,0.00013273,2]
[404651986,1770381430893,-469.5516029,0.00013273,2]
[404651987,1770381430921,-2521.19,0.00013426,2]
[404651988,1770381433454,-2516.2202513,0.00013562,2]
[404651989,1770381433482,-300.0,0.00013698,2]
[404651990,1770381433511,-457.84444693,0.00013699,2]
[404651991,1770381436443,-3451.88060354,0.00013699,2]
[404651992,1770381486836,-161.76576218,0.00013273,2]
[404651993,1770381486863,-500.0,0.00013273,2]
[404651994,1770381486885,-500.0,0.00013273,2]
[404651995,1770381486905,-338.22986578,0.00013273,2]
[404651996,1770381488390,-152.0,0.00013273,2]
[404651997,1770381490449,-9.77013422,0.00013273,2]
[404651998,1770381490468,-150.23552392,0.00013273,2]
[404652001,1770381606327,-300.0,0.00013272,2]
[404652002,1770381606351,-280.99262353,0.00013272,2]
[404652003,1770381635824,500.0,0.00027917,120]
[404652005,1770381661442,274.15887367,0.00026559,120]
[404652076,1770381844857,2558.54841805,0.00013011,2]
[404652077,1770381878024,170.6045017,0.00012667,2]
[404652079,1770382060135,-150.0,0.00013239,2]
[404652080,1770382060167,-300.0,0.00013272,2]
[404652081,1770382060199,-1200.0,0.00013272,2]
[404652082,1770382075379,-349.76447608,0.00013273,2]
[404652083,1770382075410,-500.0,0.00013273,2]
[404652084,1770382075440,-162.44150399,0.00013273,2]
[404652085,1770382075468,-500.0,0.00013273,2]
[404652086,1770382075497,-500.0,0.00013273,2]
[404652087,1770382075526,-500.0,0.00013273,2]
[404652088,1770382075555,-317.15770783,0.00013273,2]
[404652089,1770382075582,-502.03822695,0.00013273,2]
[404652090,1770382075611,-500.0,0.00013273,2]
[404652091,1770382075640,-500.0,0.00013273,2]
[404652092,1770382075669,-500.0,0.00013273,2]
[404652093,1770382075700,-19.47145673,0.00013273,2]
[404652094,1770382076087,-298.26325684,0.00013273,2]
[404652095,1770382076117,-218.7091488,0.00013273,2]
[404652096,1770382076146,-500.0,0.00013273,2]
[404652097,1770382076176,-500.0,0.00013273,2]
[404652098,1770382076204,-500.0,0.00013273,2]
[404652099,1770382076233,-500.0,0.00013273,2]
[404652100,1770382076262,-500.0,0.00013273,2]
[404652101,1770382076289,-500.0,0.00013273,2]
[404652102,1770382076323,-500.0,0.00013273,2]
[404652103,1770382076352,-500.0,0.00013273,2]
[404652104,1770382076382,-466.06518872,0.00013273,2]
[404652105,1770382076533,-33.93481128,0.00013273,2]
[404652106,1770382076563,-500.0,0.00013273,2]
[404652107,1770382076595,-500.0,0.00013273,2]
[404652108,1770382076624,-500.0,0.00013273,2]
[404652109,1770382076655,-500.0,0.00013273,2]
[404652110,1770382076684,-500.0,0.00013273,2]
[404652111,1770382076713,-500.0,0.00013273,2]
[404652112,1770382076742,-500.0,0.00013273,2]
[404652113,1770382081368,-2734.76303839,0.0001314,2]
[404652114,1770382085449,-158.0,0.00013272,2]
[404652115,1770382086254,-3721.48345502,0.00013273,2]
[404652117,1770382087539,-10000.01,0.00013273,2]
[404652118,1770382087763,-1311.70638327,0.00013273,2]
[404652119,1770382087795,-1412.96190308,0.00013598,2]
[404652120,1770382087823,-150.0,0.00013673,2]
[404652121,1770382087853,-300.0,0.00013673,2]
[404652122,1770382090565,500.0,0.00013273,2]
[404652123,1770382090945,500.0,0.00013273,2]
[404652124,1770382102707,2265.23696161,0.00013258,2]
[404652147,1770382231804,-265.52874021,0.00013272,2]
[404652149,1770382231816,-34.47125979,0.00013272,2]
[404652151,1770382231825,-480.0,0.00013272,2]
[404652152,1770382231835,-500.0,0.00013273,2]
[404652153,1770382231845,-500.0,0.00013273,2]
[404652154,1770382231854,-500.0,0.00013273,2]
[404652155,1770382231864,-438.62965247,0.00013273,2]
[404652156,1770382231875,-61.37034753,0.00013273,2]
[404652157,1770382231886,-500.0,0.00013273,2]
[404652158,1770382231896,-500.0,0.00013273,2]
[404652159,1770382231905,-500.0,0.00013273,2]
[404652160,1770382231915,-500.0,0.00013273,2]
[404652161,1770382231924,-153.0845251,0.00013273,2]
[404652162,1770382231933,-500.0,0.00013273,2]
[404652163,1770382231943,-171.79285492,0.00013273,2]
[404652172,1770382237885,-328.20714508,0.00013273,2]
[404652173,1770382237895,-479.24822683,0.00013273,2]
[404652174,1770382237904,-500.0,0.00013273,2]
[404652175,1770382237913,-500.0,0.00013273,2]
[404652176,1770382237923,-500.0,0.00013273,2]
[404652177,1770382237932,-533.93481128,0.00013273,2]
[404652178,1770382237942,-500.0,0.00013273,2]
[404652179,1770382237951,-500.0,0.00013698,2]
[404652180,1770382237961,-500.0,0.00013699,2]
[404652181,1770382237970,-500.0,0.00013699,2]
[404652183,1770382237979,-507.74444578,0.00013699,2]
[404652185,1770382237989,-500.0,0.00013699,2]
[404652186,1770382237999,-500.0,0.00013699,2]
[404652187,1770382238008,-502.64918053,0.00013699,2]
[404652188,1770382238018,-500.0,0.00013699,2]
[404652189,1770382238027,-500.0,0.00013699,2]
[404652190,1770382238037,-500.0,0.00013699,2]
[404652191,1770382238046,-200.0,0.00013699,2]
[404652192,1770382238056,-500.0,0.00013699,2]
[404652193,1770382238065,-377.83978562,0.00013699,2]
[404652194,1770382238075,-500.0,0.00013699,2]
[404652195,1770382238085,-500.0,0.00013699,2]
[404652196,1770382238094,-500.0,0.00013699,2]
[404652197,1770382238103,-560.5005424,0.00013699,2]
[404652198,1770382238112,-500.0,0.00013699,2]
[404652199,1770382238121,-500.0,0.00013699,2]
[404652200,1770382238131,-500.0,0.00013699,2]
[404652201,1770382238140,-500.0,0.00013699,2]
[404652202,1770382238149,-500.0,0.00013699,2]
[404652203,1770382238159,-500.0,0.00013699,2]
[404652204,1770382238168,-500.0,0.00013699,2]
[404652205,1770382238177,-500.0,0.00013699,2]
[404652206,1770382238187,-500.0,0.00013699,2]
[404652207,1770382238196,-150.0,0.00013699,2]
[404652208,1770382238206,-500.18513136,0.00013699,2]
[404652209,1770382238215,-500.0,0.00013699,2]
[404652210,1770382238224,-500.44451118,0.00013699,2]
[404652211,1770382238233,-500.0,0.00013699,2]
[404652212,1770382238244,-505.77928951,0.00013699,2]
[404652213,1770382238254,-500.0,0.00013699,2]
[404652214,1770382238263,-500.0,0.00013699,2]
[404652215,1770382238272,-500.0,0.00013699,2]
[404652216,1770382238282,-500.0,0.00013699,2]
[404652217,1770382238291,-500.0,0.00013699,2]
[404652218,1770382238301,-305.29580906,0.00013699,2]
[404652219,1770382238310,-500.0,0.00013699,2]
[404652220,1770382238319,-500.0,0.00013699,2]
[404652221,1770382238327,-227.75689511,0.00013699,2]
[404652222,1770382238337,-158.36942574,0.00013699,2]
[404652223,1770382238347,-500.0,0.00013699,2]
[404652224,1770382238359,-500.0,0.00013699,2]
[404652225,1770382238368,-299.99507192,0.00013699,2]
[404652226,1770382238377,-445.60413398,0.00013699,2]
[404652227,1770382238387,-500.0,0.00013699,2]
[404652228,1770382238397,-500.0,0.00013699,2]
[404652229,1770382238406,-500.0,0.00013699,2]
[404652230,1770382238416,-500.0,0.00013699,2]
[404652231,1770382238426,-500.0,0.00013699,2]
[404652232,1770382238435,-500.0,0.00013699,2]
[404652233,1770382238444,-500.0,0.00013699,2]
[404652234,1770382238454,-500.0,0.00013699,2]
[404652235,1770382238463,-462.39629658,0.00013699,2]
[404652236,1770382238472,-500.0,0.00013699,2]
[404652237,1770382238482,-500.67614391,0.00013699,2]
[404652238,1770382238492,-500.0,0.00013699,2]
[404652239,1770382238502,-500.0,0.00013699,2]
[404652240,1770382238511,-500.0,0.00013699,2]
[404652241,1770382238520,-500.0,0.00013699,2]
[404652242,1770382238530,-500.0,0.00013699,2]
[404652243,1770382238539,-500.0,0.00013699,2]
[404652244,1770382238549,-500.0,0.00013699,2]
[404652245,1770382238558,-500.0,0.00013699,2]
[404652246,1770382238567,-500.0,0.00013699,2]
[404652247,1770382238576,-500.0,0.0001372,2]
[404652248,1770382238586,-552.60136571,0.0001382,2]
[404652249,1770382238595,-500.0,0.0001382,2]
[404652250,1770382238604,-500.0,0.0001382,2]
[404652251,1770382238614,-500.0,0.0001382,2]
[404652252,1770382238623,-500.0,0.0001382,2]
[404652253,1770382238633,-200.99715758,0.0001382,2]
[404652254,1770382238642,-500.0,0.0001382,2]
[404652255,1770382238651,-500.0,0.0001382,2]
[404652256,1770382238660,-500.0,0.0001382,2]
[404652257,1770382238669,-500.0,0.0001382,2]
[404652258,1770382238679,-651.15535379,0.0001382,2]
[404652259,1770382238688,-500.0,0.0001382,2]
[404652260,1770382238697,-429.96398522,0.0001382,2]
[404652261,1770382238707,-500.0,0.0001382,2]
[404652262,1770382238716,-500.0,0.0001382,2]
[404652263,1770382238726,-500.0,0.0001382,2]
[404652264,1770382238736,-500.0,0.0001382,2]
[404652265,1770382238746,-500.0,0.0001382,2]
[404652266,1770382238756,-399.00847512,0.0001382,2]
[404652267,1770382238765,-500.0,0.0001382,2]
[404652268,1770382238775,-500.0,0.0001382,2]
[404652269,1770382238785,-500.0,0.0001382,2]
[404652270,1770382238795,-500.0,0.0001382,2]
[404652271,1770382238804,-500.0,0.0001382,2]
[404652272,1770382238814,-500.0,0.0001382,2]
[404652273,1770382238822,-500.0,0.0001382,2]
[404652274,1770382238830,-500.0,0.0001382,2]
[404652275,1770382238838,-500.0,0.0001382,2]
[404652276,1770382238847,-500.0,0.0001382,2]
[404652277,1770382238857,-500.0,0.0001382,2]
[404652278,1770382238866,-500.0,0.0001382,2]
[404652279,1770382238875,-1000.0,0.00013821,2]
[404652280,1770382238885,-1000.0,0.00013821,2]
[404652281,1770382238895,-501.43114751,0.00013821,2]
[404652282,1770382238904,-500.76311504,0.00013821,2]
[404652283,1770382238914,-1000.0,0.00013821,2]
[404652284,1770382238923,-1000.0,0.00013821,2]
[404652285,1770382238934,-463.68272366,0.00013821,2]
[404652286,1770382238944,-1000.0,0.00013821,2]
[404652287,1770382238954,-500.0,0.00013821,2]
[404652288,1770382238964,-1000.0,0.00013821,2]
[404652289,1770382238973,-1000.0,0.00013821,2]
[404652290,1770382238983,-1000.0,0.00013821,2]
[404652291,1770382238993,-1000.0,0.00013821,2]
[404652292,1770382239003,-1000.0,0.00013821,2]
[404652293,1770382239012,-501.24007939,0.00013821,2]
[404652294,1770382239022,-1000.0,0.00013821,2]
[404652295,1770382239032,-1000.0,0.00013821,2]
[404652296,1770382239041,-1000.0,0.00013821,2]
[404652297,1770382239051,-1000.0,0.00013821,2]
[404652298,1770382239060,-1000.0,0.00013821,2]
[404652299,1770382239069,-1000.0,0.00013821,2]
[404652300,1770382239079,-1000.0,0.00013821,2]
[404652301,1770382239088,-549.36450005,0.00013973,2]
[404652302,1770382239098,-300.0,0.00014221,2]
[404652303,1770382239107,-500.0,0.00014245,2]
[404652304,1770382239116,-500.0,0.00014246,2]
[404652305,1770382239126,-500.0,0.00014246,2]
[404652306,1770382239136,-1004.77665791,0.00014247,2]
[404652307,1770382239146,-1000.0,0.00014247,2]
[404652308,1770382239156,-1000.0,0.00014247,2]
[404652309,1770382239166,-1000.0,0.00014247,2]
[404652310,1770382239175,-246.1318331,0.00014247,2]
[404652311,1770382239186,-769.04527285,0.00014247,2]
[404652312,1770382239204,-500.0,0.00014247,2]
[404652313,1770382239213,-1000.0,0.00014247,2]
[404652314,1770382239223,-500.0,0.00014247,2]
[404652315,1770382239232,-933.98120373,0.00014247,2]
[404652316,1770382239243,-220.6755411,0.00014247,2]
[404652317,1770382239252,-1000.0,0.00014247,2]
[404652318,1770382239262,-1000.0,0.00014247,2]
[404652319,1770382239271,-1003.90866418,0.00014247,2]
[404652320,1770382239280,-1000.0,0.00014247,2]
[404652321,1770382239290,-1000.0,0.00014247,2]
[404652322,1770382239299,-500.0,0.00014247,2]
[404652323,1770382239308,-502.1950504,0.00014247,2]
[404652324,1770382239322,-250.0,0.00014247,2]
[404652325,1770382239336,-1000.0,0.00014247,2]
[404652326,1770382239346,-1000.0,0.00014247,2]
[404652327,1770382239360,-1000.0,0.00014247,2]
[404652328,1770382239370,-1000.0,0.00014247,2]
[404652329,1770382239379,-1000.0,0.00014247,2]
[404652330,1770382239389,-500.29871698,0.00014247,2]
[404652331,1770382239399,-1000.0,0.00014247,2]
[404652332,1770382239408,-1000.0,0.00014247,2]
[404652333,1770382239418,-501.0980949,0.00014247,2]
[404652334,1770382239430,-1000.0,0.00014247,2]
[404652335,1770382239440,-333.18092521,0.00014247,2]
[404652336,1770382239450,-1004.2102287,0.00014247,2]
[404652337,1770382239460,-1000.0,0.00014247,2]
[404652338,1770382239469,-1000.0,0.00014247,2]
[404652339,1770382239479,-557.75835328,0.00014247,2]
[404652340,1770382239488,-1000.0,0.00014247,2]
[404652341,1770382239498,-1000.0,0.00014247,2]
[404652342,1770382239507,-501.88334541,0.00014247,2]
[404652343,1770382239517,-500.61201519,0.00014247,2]
[404652344,1770382239527,-500.21390696,0.00014247,2]
[404652345,1770382239638,-947.98893381,0.00014247,2]
[404652346,1770382239648,-1000.0,0.00014247,2]
[404652347,1770382239658,-615.75647517,0.00014247,2]
[404652348,1770382239668,-1000.0,0.00014247,2]
[404652349,1770382239678,-1000.0,0.00014247,2]
[404652350,1770382239687,-1000.0,0.00014247,2]
[404652352,1770382239697,-1000.0,0.00014247,2]
[404652354,1770382239707,-1001.10016724,0.00014247,2]
[404652356,1770382239716,-1000.0,0.00014247,2]
[404652357,1770382239726,-500.69060071,0.00014368,2]
[404652358,1770382239735,-901.32607296,0.00014368,2]
[404652359,1770382239745,-1500.0,0.00014368,2]
[404652360,1770382239754,-1500.0,0.00014368,2]
[404652361,1770382239764,-1500.0,0.00014368,2]
[404652362,1770382239774,-1500.0,0.00014368,2]
[404652363,1770382239783,-1010.1221428,0.00014368,2]
[404652364,1770382239793,-1000.0,0.00014368,2]
[404652365,1770382239802,-504.25649035,0.00014368,2]
[404652366,1770382239812,-1000.0,0.00014368,2]
[404652367,1770382239821,-1000.0,0.00014368,2]
[404652368,1770382239831,-1000.0,0.00014368,2]
[404652369,1770382239840,-1032.60676825,0.00014368,2]
[404652370,1770382239850,-1000.0,0.00014368,2]
[404652371,1770382239860,-657.37344349,0.00014368,2]
[404652372,1770382239870,-1047.24446252,0.00014368,2]
[404652373,1770382239879,-1000.0,0.00014368,2]
[404652374,1770382239890,-201.91560759,0.00014768,2]
[404652375,1770382239899,-178.76426318,0.00014794,2]
[404652377,1770382239909,-461.21013687,0.00014794,2]
[404652379,1770382239919,-503.32153171,0.00014795,2]
[404652380,1770382239929,-482.23150023,0.00014795,2]
[404652381,1770382239938,-200.53173319,0.00014795,2]
[404652382,1770382239948,-500.0,0.00014795,2]
[404652383,1770382239958,-464.9411683,0.00014795,2]
[404652384,1770382239968,-1000.0,0.00014795,2]
[404652385,1770382239978,-1500.0,0.00014795,2]
[404652386,1770382239988,-200.2056735,0.00014795,2]
[404652387,1770382239998,-1495.93686307,0.00014795,2]
[404652388,1770382240007,-329.8043761,0.00014795,2]
[404652389,1770382240016,-501.74794287,0.00014795,2]
[404652390,1770382240026,-511.72561389,0.00014795,2]
[404652391,1770382240035,-1502.55184038,0.00014795,2]
[404652392,1770382240044,-364.11352414,0.00014795,2]
[404652393,1770382240054,-505.505616,0.00014795,2]
[404652394,1770382240064,-1500.0,0.00014795,2]
[404652396,1770382240073,-1500.0,0.00014795,2]
[404652397,1770382240082,-1177.05502283,0.00014795,2]
[404652399,1770382240092,-721.40863651,0.00014795,2]
[404652401,1770382240101,-500.0,0.00014795,2]
[404652403,1770382240111,-500.0,0.00014795,2]
[404652405,1770382240120,-694.54617722,0.00014795,2]
[404652407,1770382240129,-1500.0,0.00014795,2]
[404652409,1770382240138,-1000.0,0.00014795,2]
[404652411,1770382240148,-177.0,0.00015239,2]
[404652413,1770382240158,-188.00308597,0.00015342,2]
[404652415,1770382240167,-5820.37904014,0.00015469,2]
[404652417,1770382240176,-500.0,0.00016438,2]
[404652419,1770382240186,-500.0,0.00016438,2]
[404652421,1770382240195,-493.19054346,0.00016438,2]
[404652423,1770382240204,-500.0,0.00016438,2]
[404652426,1770382240214,-500.0,0.00016438,2]
[404652427,1770382240223,-500.0,0.00016438,2]
[404652429,1770382240232,-500.0,0.00016438,2]
[404652432,1770382240242,-500.0,0.00016438,2]
[404652434,1770382240252,-500.0,0.00016438,2]
[404652435,1770382240263,-500.0,0.00016438,2]
[404652437,1770382240272,-500.0,0.00016438,2]
[404652440,1770382240282,-500.0,0.00016438,2]
[404652441,1770382240291,-500.0,0.00016438,2]
[404652444,1770382240301,-500.0,0.00016438,2]
[404652445,1770382240310,-150.09207651,0.00016438,2]
[404652448,1770382240319,-200.0,0.00016934,2]
[404652449,1770382240328,-204.0,0.00017239,2]
[404652451,1770382240339,-231.0,0.00019239,2]
[404652453,1770382240348,-200.0,0.00020169,2]
[404652455,1770382240362,-258.0,0.00021239,2]
[404652457,1770382240371,-500.0,0.00021918,2]
[404652459,1770382240381,-184.11,0.00022781,2]
[404652461,1770382240391,-158.19,0.000228,7]
[404652463,1770382240402,-166.88468617,0.00023239,2]
[404652465,1770382240412,-1000.0,0.00023288,2]
[404652467,1770382240422,-425.25,0.00023364,2]
[404652469,1770382240433,-200.0,0.00023404,2]
[404652471,1770382240442,-184.11,0.00023464,2]
[404652473,1770382240451,-184.11,0.00024168,2]
[404652475,1770382240460,-250.0,0.00024416,2]
[404652477,1770382240470,-250.0,0.00024416,2]
[404652479,1770382240479,-250.0,0.00024416,2]
[404652481,1770382240488,-250.0,0.00024416,2]
[404652483,1770382240498,-250.0,0.00024416,2]
[404652486,1770382240507,-250.0,0.00024416,2]
[404652487,1770382240517,-250.0,0.00024416,2]
[404652489,1770382240526,-250.0,0.00024416,2]
[404652491,1770382240536,-250.0,0.00024416,2]
[404652494,1770382240545,-250.0,0.00024416,2]
[404652496,1770382240555,-250.0,0.00024416,2]
[404652497,1770382240564,-250.0,0.00024416,2]
[404652500,1770382240574,-500.0,0.00024416,2]
[404652501,1770382240583,-250.0,0.00024416,2]
[404652504,1770382240593,-500.0,0.00024416,2]
[404652506,1770382240602,-250.0,0.00024416,2]
[404652507,1770382240612,-500.0,0.00024416,2]
[404652510,1770382240621,-250.0,0.00024416,2]
[404652511,1770382240630,-500.0,0.00024416,2]
[404652513,1770382240640,-322.82109367,0.00024416,2]
[404652515,1770382240649,-500.0,0.00024416,2]
[404652517,1770382240659,-500.0,0.00024416,2]
[404652519,1770382240668,-500.0,0.00024416,2]
[404652521,1770382240678,-500.0,0.00024416,2]
[404652523,1770382240687,-500.0,0.00024416,2]
[404652525,1770382240696,-500.0,0.00024416,2]
[404652527,1770382240706,-500.0,0.00024416,2]
[404652529,1770382240715,-250.0,0.00024416,2]
[404652531,1770382240725,-500.0,0.00024416,2]
[404652533,1770382240734,-250.0,0.00024416,2]
[404652535,1770382240745,-500.0,0.00024416,2]
[404652537,1770382240755,-250.0,0.00024416,2]
[404652539,1770382240764,-500.0,0.00024416,2]
[404652541,1770382240773,-250.0,0.00024416,2]
[404652543,1770382240782,-188.003086,0.00024416,2]
[404652545,1770382240791,-250.0,0.00024416,2]
[404652547,1770382240801,-250.0,0.00024416,2]
[404652549,1770382240810,-250.0,0.00024416,2]
[404652551,1770382240819,-250.0,0.00024416,2]
[404652553,1770382240828,-250.0,0.00024416,2]
[404652555,1770382240839,-250.0,0.00024416,2]
[404652557,1770382240848,-250.0,0.00024416,2]
[404652559,1770382240857,-250.0,0.00024416,2]
[404652561,1770382240867,-250.0,0.00024416,2]
[404652563,1770382240876,-500.0,0.00024416,2]
[404652565,1770382240886,-250.0,0.00024416,2]
[404652567,1770382240896,-250.0,0.00024416,2]
[404652569,1770382240905,-250.0,0.00024416,2]
[404652571,1770382240914,-250.0,0.00024416,2]
[404652573,1770382240923,-500.0,0.00024416,2]
[404652575,1770382240932,-250.0,0.00024416,2]
[404652577,1770382240941,-1500.0,0.00024658,2]
[404652579,1770382240951,-832.23150023,0.00024741,14]
[404652581,1770382240960,-225.37,0.000249,2]
[404652583,1770382240969,-274.15887368,0.00025231,2]
[404652585,1770382240978,-500.0,0.00026027,2]
[404652587,1770382240987,-500.0,0.00026027,2]
[404652588,1770382240997,-500.0,0.00026027,2]
[404652590,1770382241006,-500.0,0.00026027,2]
[404652592,1770382241015,-500.0,0.00026027,2]
[404652594,1770382241024,-500.0,0.00026027,2]
[404652596,1770382241033,-500.0,0.00026027,2]
[404652598,1770382241042,-500.0,0.00026027,2]
[404652600,1770382241052,-500.0,0.00026027,2]
[404652602,1770382241061,-500.0,0.00026027,2]
[404652604,1770382241070,-500.0,0.00026027,2]
[404652606,1770382241079,-154.899,0.00026055,12]
[404652608,1770382241088,-674.69,0.000261,14]
[404652610,1770382241097,-274.15887368,0.00026294,56]
[404652612,1770382241106,-500.0,0.00026399,2]
[404652614,1770382241115,-225.69463239,0.000266,7]
[404652616,1770382241124,-200.0,0.00026638,2]
[404652618,1770382241134,-600.0,0.00027,28]
[404652620,1770382241143,-400.0,0.00027108,3]
[404652622,1770382241152,-500.0,0.00027295,2]
[404652624,1770382241161,-8436.4429228,0.00027296,2]
[404652626,1770382241170,-367.42656274,0.00027412,2]
[404652628,1770382241179,-190.05535448,0.0002749,2]
[404652630,1770382241189,-342.09963807,0.0002749,2]
[404652632,1770382241198,-2764.438729,0.00027541,60]
[404652634,1770382241207,-344.79098485,0.00027581,7]
[404652636,1770382241216,-1802.168983,0.00027673,60]
[404652638,1770382241226,-164.61544662,0.00027849,2]
[404652640,1770382241235,-158.19,0.000279,7]
[404652642,1770382241245,-504.69896786,0.00027917,10]
[404652644,1770382241254,-204.9303591,0.00027917,2]
[404652647,1770382241264,-2679.107428,0.00027921,60]
[404652649,1770382241274,-674.69,0.00028,14]
[404652651,1770382241283,-500.0,0.00028199,2]
[404652653,1770382241292,-500.0,0.00028199,2]
[404652655,1770382241302,-883.096,0.00028263,2]
[404652656,1770382241311,-169.0,0.00028281,3]
[404652658,1770382241320,-5000.0,0.000284,2]
[404652661,1770382241330,-400.0,0.00028407,3]
[404652663,1770382241339,-707.0,0.00028415,3]
[404652665,1770382241349,-915.13961308,0.00028557,2]
[404652666,1770382241361,-500.0,0.00028558,2]
[404652669,1770382241370,-856.4551308,0.00028559,2]
[404652670,1770382241379,-161.0,0.00028601,3]
[404652672,1770382241389,-9081.83431926,0.00028609,2]
[404652674,1770382241398,-359.61195293,0.00028628,2]
[404652676,1770382241407,-2000.0,0.0002866,7]
[404652678,1770382241416,-500.0,0.00028696,2]
[404652680,1770382241426,-500.0,0.00028696,2]
[404652682,1770382241436,-294.4,0.00028696,2]
[404652684,1770382241445,-91486.61448378,0.00028697,2]